bitfinex/quotes_BTCUSD_20250213
["timestamp","ask_amount","ask_price","bid_price","bid_amount"]
[1739478443994,0.155795,96280.0,96279.0,0.02222645]
[1739478444398,0.155826,96261.0,96260.0,0.20136]
[1739478445708,0.155826,96261.0,96260.0,0.20144654]
[1739478446503,0.155826,96261.0,96260.0,0.22161356]
[1739478446905,0.156826,96261.0,96260.0,0.22161356]
[1739478447595,0.156826,96261.0,96260.0,0.20144654]
[1739478452121,0.001,96261.0,96260.0,0.20144654]
[1739478452325,0.156826,96261.0,96260.0,0.20144654]
[1739478452540,0.156826,96261.0,96260.0,0.20167019]
[1739478457506,0.156826,96261.0,96260.0,0.28417019]
[1739478459189,0.001,96261.0,96260.0,0.38667384]
[1739478465103,0.001,96261.0,96260.0,0.86630084]
[1739478465470,0.001,96261.0,96260.0,0.71047384]
[1739478466323,0.155816,96268.0,96260.0,0.71047384]
[1739478466524,0.0001065,96279.0,96261.0,0.10250365]
[1739478466759,0.155817,96267.0,96262.0,0.07594975]
[1739478466979,0.155817,96267.0,96263.0,0.10250365]
[1739478467164,0.155819,96266.0,96263.0,0.10250365]
[1739478467516,0.14604027,96271.0,96263.0,0.10250365]
[1739478467970,0.207745,96272.0,96263.0,0.10250365]
[1739478468187,0.207745,96272.0,96264.0,0.10250365]
[1739478468415,0.20774,96274.0,96265.0,0.10250365]
[1739478468623,0.155814,96269.0,96265.0,0.10250365]
[1739478469016,0.207731,96278.0,96265.0,0.10250365]
[1739478469240,0.155815,96268.0,96265.0,0.10250365]
[1739478469475,0.155817,96267.0,96265.0,0.10250365]
[1739478469708,0.155814,96269.0,96265.0,0.10250365]
[1739478469936,0.155814,96269.0,96265.0,0.10550365]
[1739478470190,0.14604027,96280.0,96265.0,0.13066494]
[1739478470445,0.155808,96273.0,96265.0,0.13066494]
[1739478470704,0.155808,96272.0,96266.0,0.0826]
[1739478470927,0.14604027,96280.0,96267.0,0.10250365]
[1739478471122,0.2078365,96279.0,96267.0,0.10250365]
[1739478471385,0.155815,96268.0,96267.0,0.10250365]
[1739478473001,0.15581,96271.0,96267.0,0.15942503]
[1739478473663,0.207737,96276.0,96267.0,0.15942503]
[1739478473877,0.155812,96270.0,96267.0,0.15942503]
[1739478474340,0.155812,96270.0,96267.0,0.15642503]
[1739478474572,0.207745,96272.0,96268.0,0.0394849]
[1739478474741,0.207745,96272.0,96269.0,0.10250365]
[1739478475183,0.155811,96270.0,96269.0,0.10250365]
[1739478475959,0.155811,96270.0,96269.0,0.10450365]
[1739478476539,0.155811,96270.0,96269.0,0.10750365]
[1739478477255,0.155811,96270.0,96269.0,0.10550365]
[1739478477489,0.155811,96270.0,96269.0,0.10850365]
[1739478479522,0.155811,96270.0,96269.0,0.006]
[1739478480472,0.0001065,96279.0,96270.0,0.0816]
[1739478480696,0.0001065,96279.0,96271.0,0.10250365]
[1739478480942,0.155807,96273.0,96271.0,0.10250365]
[1739478481180,0.155808,96272.0,96271.0,0.10250365]
[1739478481428,0.155806,96274.0,96271.0,0.12121402]
[1739478481688,0.155806,96273.0,96272.0,0.0453]
[1739478481928,0.155806,96273.0,96272.0,0.14780365]
[1739478483363,0.155806,96273.0,96272.0,0.14880365]
[1739478483848,0.155806,96273.0,96272.0,0.14980365]
[1739478484546,0.207733,96278.0,96272.0,0.17294402]
[1739478484775,0.0001065,96279.0,96273.0,0.10250365]
[1739478486322,0.0011065,96279.0,96273.0,0.10250365]
[1739478486740,0.155798,96278.0,96273.0,0.10250365]
[1739478486915,0.155801,96277.0,96273.0,0.10250365]
[1739478487384,0.2088365,96279.0,96273.0,0.10250365]
[1739478487385,0.2088365,96279.0,96273.0,0.17571945]
[1739478487623,0.155803,96275.0,96273.0,0.17571945]
[1739478488074,0.155802,96276.0,96273.0,0.17571945]
[1739478488300,0.207731,96278.0,96273.0,0.17571945]
[1739478488528,0.207733,96277.0,96273.0,0.17571945]
[1739478488761,0.0001065,96279.0,96274.0,0.03130877]
[1739478488985,0.0001065,96279.0,96275.0,0.10250365]
[1739478489983,0.155799,96278.0,96275.0,0.10250365]
[1739478490236,0.155801,96277.0,96275.0,0.10250365]
[1739478490508,0.155802,96276.0,96275.0,0.10250365]
[1739478491010,0.155802,96276.0,96275.0,0.12564402]
[1739478491253,0.0011065,96279.0,96275.0,0.12564402]
[1739478491472,0.0001065,96279.0,96275.0,0.12564402]
[1739478491935,0.1559035,96279.0,96275.0,0.12564402]
[1739478492175,0.155802,96276.0,96275.0,0.12564402]
[1739478493327,0.155802,96276.0,96275.0,0.10250365]
[1739478495097,0.0001065,96279.0,96275.0,0.10250365]
[1739478496058,0.0001065,96279.0,96276.0,0.0783]
[1739478496322,0.0001065,96279.0,96277.0,0.10250365]
[1739478497499,0.0011065,96279.0,96277.0,0.10250365]
[1739478497700,0.0021065,96279.0,96278.0,0.07578723]
[1739478497877,0.0011065,96279.0,96278.0,0.17829088]
[1739478498453,0.0021065,96279.0,96278.0,0.17829088]
[1739478498888,0.0001065,96279.0,96278.0,0.17829088]
[1739478499091,0.0011065,96279.0,96278.0,0.17829088]
[1739478499266,0.0021065,96279.0,96278.0,0.17829088]
[1739478499475,0.0021065,96279.0,96278.0,0.78938888]
[1739478499648,0.0021065,96279.0,96278.0,0.71360165]
[1739478500698,0.0001065,96279.0,96278.0,0.73660165]
[1739478501335,0.0001065,96279.0,96278.0,0.73960165]
[1739478501525,0.0001065,96279.0,96278.0,0.74260165]
[1739478501881,0.0001065,96279.0,96278.0,0.73660165]
[1739478502076,0.0001065,96279.0,96278.0,0.8451053]
[1739478502280,0.0011065,96279.0,96278.0,0.8521053]
[1739478504268,0.0011065,96279.0,96278.0,1.20035981]
[1739478505253,0.0011065,96279.0,96278.0,1.35035981]
[1739478505848,0.0011065,96279.0,96278.0,1.34435981]
[1739478506204,0.0011065,96279.0,96278.0,1.02655981]
[1739478506436,0.0011065,96279.0,96278.0,0.6783053]
[1739478506964,0.0001065,96279.0,96278.0,0.6713053]
[1739478507638,0.0001065,96279.0,96278.0,0.6723053]
[1739478507843,0.0001065,96279.0,96278.0,0.4935073]
[1739478508040,0.0001065,96279.0,96278.0,0.6563053]
[1739478508819,0.0001065,96279.0,96278.0,0.5063053]
[1739478509348,0.0001065,96279.0,96278.0,0.5293053]
[1739478510171,0.0001065,96279.0,96278.0,1.0645053]
[1739478510371,0.14604027,96320.0,96281.0,0.023]
[1739478510558,0.155748,96310.0,96303.0,0.0772]
[1739478510765,0.155748,96310.0,96304.0,0.10250365]
[1739478510766,0.16914477,96310.0,96304.0,0.10250365]
[1739478511050,0.01339677,96310.0,96304.0,0.10250365]
[1739478511227,0.16914377,96310.0,96304.0,0.10250365]
[1739478511428,0.155747,96310.0,96305.0,0.05431477]
[1739478511634,0.155747,96310.0,96306.0,0.10250365]
[1739478511790,0.15579082,96310.0,96306.0,0.10250365]
[1739478512455,4.382e-05,96310.0,96306.0,0.10250365]
[1739478512883,4.382e-05,96310.0,96309.0,0.155748]
[1739478513015,4.382e-05,96310.0,96309.0,0.35419862]
[1739478513777,4.382e-05,96310.0,96309.0,0.19845062]
[1739478513923,4.382e-05,96310.0,96309.0,0.10250365]
[1739478514535,4.382e-05,96310.0,96309.0,0.10350365]
[1739478516021,0.15579082,96310.0,96309.0,0.001]
[1739478520495,0.16079082,96310.0,96309.0,0.001]
[1739478521311,0.155782,96288.0,96287.0,0.5352]
[1739478521569,0.155782,96288.0,96287.0,0.15602365]
[1739478522744,0.155782,96288.0,96287.0,0.10250365]
[1739478523206,0.155782,96288.0,96287.0,0.10450365]
[1739478523725,0.155782,96288.0,96287.0,0.002]
[1739478523973,0.155782,96288.0,96287.0,0.004]
[1739478526818,0.155797,96279.0,96278.0,0.00022365]
[1739478527014,0.155797,96279.0,96278.0,0.1027273]
[1739478528100,0.1558408,96279.0,96278.0,0.1027273]
[1739478528304,0.1558408,96279.0,96278.0,0.1067273]
[1739478529607,0.1558408,96279.0,96278.0,0.00422365]
[1739478529819,0.1558408,96279.0,96278.0,0.00822365]
[1739478530236,0.1558408,96279.0,96278.0,0.01705075]
[1739478530444,0.1558408,96279.0,96278.0,0.17685075]
[1739478531091,0.1558408,96279.0,96278.0,0.2793544]
[1739478536651,4.38e-05,96279.0,96278.0,0.2793544]
[1739478539321,0.1558408,96279.0,96278.0,0.2793544]
[1739478539734,0.1558408,96279.0,96278.0,0.2705273]
[1739478541765,4.38e-05,96279.0,96278.0,0.3462273]
[1739478542769,0.1558408,96279.0,96278.0,0.3462273]
[1739478544393,0.1558408,96279.0,96278.0,0.16802365]
[1739478545452,0.1558408,96279.0,96278.0,0.2705273]
[1739478545657,0.1558408,96279.0,96278.0,0.37672476]
[1739478546111,0.1558408,96279.0,96278.0,0.37872476]
[1739478546327,4.38e-05,96279.0,96278.0,0.37872476]
[1739478547143,4.38e-05,96279.0,96278.0,0.37472476]
[1739478547344,4.38e-05,96279.0,96278.0,0.37772476]
[1739478549022,0.1558408,96279.0,96278.0,0.37772476]
[1739478550769,4.38e-05,96279.0,96278.0,0.37772476]
[1739478552656,4.38e-05,96279.0,96278.0,0.42332476]
[1739478553280,0.1558408,96279.0,96278.0,0.16502365]
[1739478554211,0.1558408,96279.0,96278.0,0.16202365]
[1739478554765,0.1558408,96279.0,96278.0,0.16002365]
[1739478558817,0.207724,96282.0,96278.0,0.16002365]
[1739478559037,0.155797,96279.0,96278.0,0.16002365]
[1739478559661,0.255582,96302.0,96278.0,0.2861344]
[1739478559880,4.381e-05,96290.0,96279.0,0.18410365]
[1739478560406,0.15582281,96290.0,96279.0,0.18410365]
[1739478560612,4.381e-05,96290.0,96284.0,0.155787]
[1739478560897,0.155783,96288.0,96285.0,0.15495579]
[1739478561101,0.155782,96289.0,96285.0,0.15495579]
[1739478561308,4.381e-05,96290.0,96285.0,0.15495579]
[1739478561514,4.381e-05,96290.0,96286.0,0.083]
[1739478561688,4.381e-05,96290.0,96287.0,0.10250365]
[1739478561900,4.381e-05,96290.0,96288.0,0.02379558]
[1739478562100,4.381e-05,96290.0,96289.0,0.10250365]
[1739478562755,4.381e-05,96290.0,96289.0,0.25828465]
[1739478562934,4.381e-05,96290.0,96289.0,0.10250365]
[1739478563367,4.381e-05,96290.0,96289.0,0.25828465]
[1739478563574,4.381e-05,96290.0,96289.0,0.33719477]
[1739478565050,4.381e-05,96290.0,96289.0,0.34019477]
[1739478566025,0.207689,96298.0,96289.0,0.18441377]
[1739478566160,0.155769,96297.0,96290.0,0.155778]
[1739478566360,0.155769,96297.0,96291.0,0.10250365]
[1739478566565,0.207689,96298.0,96292.0,0.0236071]
[1739478566767,0.155769,96297.0,96293.0,0.10250365]
[1739478566964,0.155767,96298.0,96293.0,0.10250365]
[1739478567166,0.155768,96297.0,96293.0,0.10250365]
[1739478568212,0.155768,96297.0,96293.0,0.10350365]
[1739478568443,0.155768,96297.0,96294.0,0.03855964]
[1739478568649,0.155768,96297.0,96295.0,0.10250365]
[1739478568917,4.38e-05,96300.0,96295.0,0.10250365]
[1739478569292,0.1558078,96300.0,96295.0,0.10250365]
[1739478569492,4.38e-05,96300.0,96296.0,0.0766]
[1739478569695,4.38e-05,96300.0,96297.0,0.13994718]
[1739478570772,4.38e-05,96300.0,96299.0,0.155764]
[1739478570999,4.38e-05,96300.0,96299.0,0.25826765]
[1739478571201,4.38e-05,96300.0,96299.0,0.10250365]
[1739478571532,0.155749,96309.0,96299.0,0.10250365]
[1739478571723,0.155756,96305.0,96300.0,0.1263553]
[1739478571918,0.155754,96306.0,96300.0,0.1263553]
[1739478572657,0.30178727,96310.0,96300.0,0.1263553]
[1739478572869,0.01283803,96313.0,96300.0,0.1263553]
[1739478573061,0.01283803,96313.0,96303.0,0.155756]
[1739478573308,0.01283803,96313.0,96304.0,0.13031377]
[1739478573504,0.155748,96309.0,96304.0,0.13031377]
[1739478573706,0.01283803,96313.0,96304.0,0.13031377]
[1739478573707,0.22049503,96313.0,96304.0,0.13031377]
[1739478573926,0.01283803,96313.0,96304.0,0.13031377]
[1739478574108,0.01283803,96313.0,96312.0,0.0778]
[1739478574353,0.01283803,96313.0,96312.0,0.18030365]
[1739478575494,0.01283803,96313.0,96312.0,0.33604665]
[1739478579410,0.01283803,96313.0,96312.0,0.18030365]
[1739478579587,0.01283803,96313.0,96312.0,0.33604665]
[1739478579791,4.38e-05,96313.0,96312.0,0.37349018]
[1739478580808,4.38e-05,96313.0,96312.0,0.21774718]
[1739478582560,4.38e-05,96313.0,96312.0,0.22074718]
[1739478583268,4.38e-05,96313.0,96312.0,0.0848]
[1739478583469,0.1557858,96313.0,96312.0,0.007]
[1739478584077,0.1557858,96313.0,96312.0,0.003]
[1739478585065,0.1558923,96313.0,96312.0,0.003]
[1739478585262,0.155754,96306.0,96301.0,0.0758]
[1739478585472,0.155758,96303.0,96302.0,0.16259311]
[1739478586657,0.155758,96303.0,96302.0,0.16659311]
[1739478587734,0.155758,96303.0,96302.0,0.10650365]
[1739478589265,0.155758,96303.0,96302.0,0.11050365]
[1739478590034,0.207673,96305.0,96302.0,0.11050365]
[1739478590243,0.155754,96306.0,96302.0,0.11050365]
[1739478590455,0.207668,96308.0,96302.0,0.11050365]
[1739478590660,0.155756,96304.0,96303.0,0.05556273]
[1739478590877,0.155756,96304.0,96303.0,0.15806638]
[1739478591626,0.155756,96304.0,96303.0,0.10250365]
[1739478592253,0.155758,96303.0,96302.0,0.004]
[1739478592463,0.155758,96303.0,96302.0,0.10250365]
[1739478592662,0.155758,96303.0,96302.0,0.10550365]
[1739478593079,0.155758,96303.0,96302.0,0.003]
[1739478593304,0.155766,96298.0,96297.0,0.00022365]
[1739478594850,0.155766,96298.0,96297.0,0.00522365]
[1739478595755,0.155766,96298.0,96297.0,0.01122365]
[1739478596386,0.155766,96298.0,96297.0,0.1137273]
[1739478596835,0.155766,96298.0,96297.0,0.15748003]
[1739478600469,0.155766,96298.0,96297.0,0.01122365]
[1739478601077,0.155797,96279.0,96266.0,0.0789]
[1739478601492,0.16784083,96279.0,96266.0,0.0789]
[1739478601923,0.01204383,96279.0,96266.0,0.0789]
[1739478602124,0.01204383,96279.0,96261.0,0.3238]
[1739478602125,0.01204383,96279.0,96278.0,0.35397439]
[1739478602263,0.14604027,96288.0,96278.0,0.35401819]
[1739478602459,0.14604027,96288.0,96279.0,0.10250365]
[1739478602667,0.15837546,96288.0,96279.0,0.10250365]
[1739478603122,0.16811719,96288.0,96280.0,0.155794]
[1739478603332,0.155784,96287.0,96281.0,0.19994423]
[1739478603541,0.155782,96289.0,96281.0,0.19994423]
[1739478603741,0.16829683,96289.0,96281.0,0.19994423]
[1739478603940,0.01251483,96289.0,96281.0,0.19994423]
[1739478604207,0.155783,96288.0,96281.0,0.19994423]
[1739478604428,0.004,96287.0,96281.0,0.10250365]
[1739478604826,0.155785,96286.0,96281.0,0.10250365]
[1739478605146,0.155787,96285.0,96281.0,0.10250365]
[1739478605495,0.004,96287.0,96281.0,0.10250365]
[1739478605706,0.155792,96282.0,96281.0,0.10250365]
[1739478605903,0.155787,96285.0,96281.0,0.10250365]
[1739478606171,0.155789,96284.0,96281.0,0.10250365]
[1739478606448,0.155791,96283.0,96281.0,0.10250365]
[1739478606864,0.155785,96286.0,96281.0,0.2050073]
[1739478607077,0.158784,96287.0,96281.0,0.2050073]
[1739478607283,0.155785,96286.0,96281.0,0.20213978]
[1739478607461,0.002,96283.0,96281.0,0.20213978]
[1739478608184,0.157792,96283.0,96281.0,0.20213978]
[1739478608767,0.002,96286.0,96281.0,0.20213978]
[1739478609034,0.001,96283.0,96281.0,0.20213978]
[1739478609762,0.001,96283.0,96282.0,0.02516129]
[1739478609964,0.001,96283.0,96282.0,0.12766494]
[1739478610698,0.002,96283.0,96282.0,0.36759553]
[1739478610900,0.002,96283.0,96282.0,0.36655694]
[1739478611759,0.003,96283.0,96282.0,0.36655694]
[1739478611958,0.002,96283.0,96282.0,0.36655694]
[1739478612201,0.155771,96295.0,96287.0,0.155784]
[1739478612375,0.155771,96295.0,96288.0,0.18072481]
[1739478612607,0.15577,96296.0,96288.0,0.33650681]
[1739478613016,0.207692,96296.0,96289.0,0.0764]
[1739478613224,0.155771,96296.0,96290.0,0.10250365]
[1739478613541,0.0001065,96298.0,96290.0,0.10250365]
[1739478613744,0.155775,96293.0,96290.0,0.10250365]
[1739478613949,0.155775,96293.0,96290.0,0.13597262]
[1739478614173,0.155775,96293.0,96290.0,0.45977262]
[1739478614486,0.00051589,96291.0,96290.0,0.3238]
[1739478614685,0.207701,96293.0,96290.0,0.3238]
[1739478615032,0.155777,96291.0,96290.0,0.3238]
[1739478616407,0.157777,96291.0,96290.0,0.3238]
[1739478616859,0.157777,96291.0,96290.0,0.35618]
[1739478617789,0.158777,96291.0,96290.0,0.35618]
[1739478618936,0.155777,96291.0,96290.0,0.35618]
[1739478620302,0.155777,96291.0,96290.0,0.03238]
[1739478620474,0.15579,96283.0,96282.0,0.0782]
[1739478620681,0.155789,96284.0,96282.0,0.18070365]
[1739478620879,0.155789,96284.0,96283.0,0.10250365]
[1739478621080,0.155789,96284.0,96283.0,0.17387312]
[1739478621510,0.14604027,96292.0,96279.0,0.3727]
[1739478621511,0.155792,96282.0,96279.0,0.3238]
[1739478623373,0.155792,96282.0,96281.0,0.00222365]
[1739478623929,0.155792,96282.0,96281.0,0.00422365]
[1739478626390,0.1501065,96291.0,96281.0,0.00422365]
[1739478626590,0.155791,96283.0,96281.0,0.00422365]
[1739478626830,0.155791,96283.0,96282.0,0.01645148]
[1739478627453,0.1511065,96291.0,96282.0,0.11895513]
[1739478627602,0.155784,96288.0,96283.0,0.18050365]
[1739478627807,0.207705,96290.0,96283.0,0.18050365]
[1739478628019,0.155789,96284.0,96283.0,0.18050365]
[1739478628653,0.1501065,96291.0,96283.0,0.18050365]
[1739478628829,0.155787,96285.0,96283.0,0.18050365]
[1739478629064,0.155789,96284.0,96283.0,0.18050365]
[1739478629267,0.1501065,96291.0,96283.0,0.18050365]
[1739478629473,0.155789,96284.0,96283.0,0.18050365]
[1739478630778,0.155789,96284.0,96283.0,0.18150365]
[1739478631181,0.155789,96284.0,96283.0,0.18050365]
[1739478631564,0.155789,96284.0,96283.0,0.18350365]
[1739478633688,0.155789,96284.0,96283.0,0.081]
[1739478636950,0.155789,96284.0,96283.0,0.00322365]
[1739478641467,0.1501065,96291.0,96284.0,0.1275]
[1739478641641,0.155782,96288.0,96285.0,0.10250365]
[1739478641865,0.155785,96286.0,96285.0,0.10250365]
[1739478643341,0.155785,96286.0,96285.0,0.10350365]
[1739478643779,0.0001065,96291.0,96285.0,0.10350365]
[1739478644032,0.1558855,96291.0,96286.0,0.0387243]
[1739478644286,0.1558855,96291.0,96289.0,0.155779]
[1739478644287,0.0001065,96291.0,96289.0,0.155779]
[1739478644487,0.0001065,96291.0,96290.0,0.10250365]
[1739478644961,0.0011065,96291.0,96290.0,0.10250365]
[1739478645146,0.1568835,96291.0,96290.0,0.16535881]
[1739478645757,0.1578835,96291.0,96290.0,0.16535881]
[1739478646053,0.1558835,96291.0,96290.0,0.16535881]
[1739478646256,0.1568835,96291.0,96290.0,0.16535881]
[1739478646473,0.1578835,96291.0,96290.0,0.10250365]
[1739478649610,0.1578835,96291.0,96290.0,0.1027273]
[1739478650160,0.0021065,96291.0,96290.0,0.3365063]
[1739478650739,0.0021065,96291.0,96290.0,0.7079063]
[1739478650948,0.0011065,96291.0,96290.0,0.7079063]
[1739478651302,0.0021065,96291.0,96290.0,0.81040995]
[1739478651860,0.0021065,96291.0,96290.0,1.36860995]
[1739478652244,0.0011065,96291.0,96290.0,1.36860995]
[1739478652566,0.0011065,96291.0,96290.0,1.37460995]
[1739478652918,0.0001065,96291.0,96290.0,1.37460995]
[1739478653176,0.0001065,96291.0,96290.0,1.38060995]
[1739478657666,0.0001065,96291.0,96290.0,1.37460995]
[1739478658000,0.0001065,96291.0,96290.0,1.38160995]
[1739478658445,0.0001065,96291.0,96290.0,1.35860995]
[1739478658857,0.0001065,96291.0,96290.0,1.35260995]
[1739478659068,0.0001065,96291.0,96290.0,1.35960995]
[1739478660440,0.0001065,96291.0,96290.0,1.20383095]
[1739478660758,0.0001065,96291.0,96290.0,1.35960995]
[1739478661729,0.0001065,96291.0,96290.0,1.38260995]
[1739478662473,0.0001065,96293.0,96292.0,0.023]
[1739478662679,0.0001065,96293.0,96292.0,0.55301782]
[1739478662876,0.0001065,96293.0,96292.0,0.55197965]
[1739478663790,0.0001065,96293.0,96292.0,0.55897965]
[1739478664212,0.0001065,96293.0,96292.0,0.56597965]
[1739478664414,0.0001065,96293.0,96292.0,0.6684833]
[1739478668750,0.0001065,96293.0,96292.0,1.05090365]
[1739478669577,0.1558805,96293.0,96292.0,0.97550365]
[1739478670480,0.1558805,96293.0,96292.0,0.96850365]
[1739478670760,0.01952172,96293.0,96292.0,0.96850365]
[1739478670968,0.01952172,96293.0,96292.0,0.97350365]
[1739478670969,0.17529572,96293.0,96292.0,0.97350365]
[1739478671115,0.17529572,96293.0,96292.0,0.012]
[1739478671317,0.01952172,96293.0,96292.0,0.10750365]
[1739478671514,0.01952172,96293.0,96292.0,0.11250365]
[1739478671771,0.01952172,96293.0,96292.0,0.10750365]
[1739478671946,0.01952172,96293.0,96292.0,0.11827638]
[1739478672148,0.02052172,96293.0,96292.0,0.11827638]
[1739478672558,0.01952172,96293.0,96292.0,0.35555238]
[1739478672760,0.01952172,96293.0,96292.0,0.35155238]
[1739478672963,0.01952172,96293.0,96292.0,0.35455238]
[1739478673485,0.01952172,96293.0,96292.0,0.67535238]
[1739478673693,0.0001065,96293.0,96292.0,0.67535238]
[1739478673895,0.0001065,96293.0,96292.0,0.67635238]
[1739478674655,0.0001065,96293.0,96292.0,0.69935238]
[1739478675602,0.0001065,96293.0,96292.0,0.84935238]
[1739478675813,0.0001065,96293.0,96292.0,0.89475238]
[1739478676597,0.0001065,96293.0,96292.0,1.42895238]
[1739478676806,0.0001065,96293.0,96292.0,1.43595238]
[1739478677541,0.0001065,96293.0,96292.0,1.43495238]
[1739478677743,0.0001065,96293.0,96292.0,1.44195238]
[1739478679493,0.0001065,96293.0,96292.0,1.45369953]
[1739478679989,0.0001065,96293.0,96292.0,1.44195238]
[1739478682250,0.0001065,96293.0,96292.0,1.41895238]
[1739478682453,0.0001065,96293.0,96292.0,1.26895238]
[1739478682633,0.0001065,96293.0,96292.0,1.24655238]
[1739478685990,0.0001065,96293.0,96292.0,1.23955238]
[1739478686352,0.0001065,96293.0,96292.0,1.24655238]
[1739478687191,0.0001065,96293.0,96292.0,1.23955238]
[1739478687619,0.0001065,96293.0,96292.0,1.24655238]
[1739478691920,0.0001065,96293.0,96292.0,1.44435238]
[1739478692338,0.0001065,96293.0,96292.0,1.47639369]
[1739478694898,0.0001065,96293.0,96292.0,1.44435238]
[1739478698224,0.0001065,96310.0,96296.0,0.01]
[1739478698424,0.0001065,96310.0,96309.0,0.55505165]
[1739478699279,0.0001065,96310.0,96309.0,0.56722855]
[1739478700204,0.0001065,96310.0,96309.0,0.57422855]
[1739478700985,0.0001503,96310.0,96309.0,0.57422855]
[1739478701100,0.0001503,96310.0,96309.0,0.60387201]
[1739478703380,0.0001503,96310.0,96309.0,1.13907201]
[1739478706689,0.0001503,96310.0,96309.0,1.07104021]
[1739478708648,0.0001503,96310.0,96309.0,1.11784021]
[1739478716345,0.0377006,96344.0,96337.0,0.155703]
[1739478716547,0.0377006,96344.0,96338.0,0.10250365]
[1739478716860,0.19343641,96344.0,96338.0,0.10250365]
[1739478717056,0.03774441,96344.0,96338.0,0.10250365]
[1739478717258,0.155693,96343.0,96338.0,0.10250365]
[1739478717505,0.155693,96343.0,96339.0,0.04658177]
[1739478717687,0.155693,96343.0,96340.0,0.10250365]
[1739478717915,0.03774441,96344.0,96340.0,0.10250365]
[1739478718251,0.04915328,96344.0,96340.0,0.10250365]
[1739478719742,0.04915328,96344.0,96340.0,0.25820065]
[1739478719955,0.01145268,96344.0,96341.0,0.04658086]
[1739478720164,0.28615646,96350.0,96342.0,0.10250365]
[1739478720364,0.155687,96347.0,96342.0,0.10250365]
[1739478720591,0.155687,96348.0,96342.0,0.10250365]
[1739478721831,0.155684,96349.0,96342.0,0.10250365]
[1739478722183,0.0399,96353.0,96341.0,0.20227686]
[1739478722184,0.0399,96363.0,96348.0,0.10250365]
[1739478722393,0.155653,96368.0,96361.0,0.155663]
[1739478722513,0.00043809,96366.0,96362.0,0.10250365]
[1739478723275,0.01209288,96366.0,96362.0,0.25816565]
[1739478723476,0.155661,96363.0,96362.0,0.10250365]
[1739478723831,0.155658,96365.0,96362.0,0.10250365]
[1739478724033,0.00043809,96366.0,96363.0,0.01025037]
[1739478724260,0.01188503,96366.0,96364.0,0.10250365]
[1739478724438,0.155658,96365.0,96364.0,0.10250365]
[1739478724635,0.00043809,96366.0,96363.0,0.01025037]
[1739478724824,0.01224964,96366.0,96330.0,0.08354481]
[1739478725026,0.155677,96353.0,96352.0,0.10250365]
[1739478725660,0.14604027,96361.0,96352.0,0.10250365]
[1739478725862,0.00043809,96366.0,96352.0,0.10250365]
[1739478726069,0.01217017,96366.0,96352.0,0.10250365]
[1739478726282,0.155675,96355.0,96353.0,0.04658086]
[1739478726451,0.155675,96355.0,96354.0,0.10250365]
[1739478727981,0.195547,96372.0,96354.0,0.10250365]
[1739478728185,0.195547,96372.0,96359.0,0.155666]
[1739478728186,0.207534,96370.0,96359.0,0.155666]
[1739478728434,0.207529,96372.0,96360.0,0.10250365]
[1739478728765,0.0051,96378.0,96361.0,0.03859676]
[1739478728984,0.207533,96370.0,96362.0,0.10250365]
[1739478729176,0.207533,96370.0,96363.0,0.15566]
[1739478729407,0.207533,96370.0,96364.0,0.10250365]
[1739478729701,0.156051,96369.0,96364.0,0.25816265]
[1739478729907,0.0004,96369.0,96365.0,0.05123795]
[1739478730197,0.155653,96368.0,96365.0,0.1537416]
[1739478730399,0.156052,96369.0,96365.0,0.1537416]
[1739478730625,0.156052,96369.0,96365.0,0.1536418]
[1739478730967,0.155654,96368.0,96365.0,0.1536418]
[1739478731383,0.156051,96369.0,96365.0,0.1536418]
[1739478731629,0.155654,96368.0,96365.0,0.1536418]
[1739478732208,0.155655,96367.0,96365.0,0.1536418]
[1739478732597,0.155653,96368.0,96365.0,0.1536418]
[1739478732815,0.156052,96369.0,96365.0,0.1536418]
[1739478733035,0.0004,96369.0,96365.0,0.3092998]
[1739478733850,0.155655,96367.0,96365.0,0.1536418]
[1739478734074,0.0004,96369.0,96365.0,0.1536418]
[1739478734075,0.16771123,96366.0,96365.0,0.1536418]
[1739478734285,0.16771123,96366.0,96365.0,0.10250365]
[1739478734749,0.16781773,96366.0,96365.0,0.10250365]
[1739478734954,0.01216173,96366.0,96365.0,0.10250365]
[1739478736572,0.16781773,96366.0,96365.0,0.10250365]
[1739478737140,0.01216173,96366.0,96365.0,0.10250365]
[1739478737519,0.01216173,96366.0,96365.0,0.14907611]
[1739478739331,0.16781773,96366.0,96365.0,0.14907611]
[1739478739521,0.01216173,96366.0,96365.0,0.14907611]
[1739478739824,0.16781773,96366.0,96365.0,0.10250365]
[1739478741802,0.155672,96356.0,96355.0,0.5352]
[1739478742003,0.155672,96356.0,96355.0,0.63770365]
[1739478742825,0.155672,96356.0,96355.0,0.63870365]
[1739478743148,0.155672,96356.0,96355.0,0.70878929]
[1739478745063,0.155672,96356.0,96355.0,0.17358929]
[1739478745267,0.155672,96356.0,96355.0,0.10450365]
[1739478746029,0.155672,96356.0,96355.0,0.10350365]
[1739478746232,0.155672,96356.0,96355.0,0.10250365]
[1739478747032,0.155672,96356.0,96355.0,0.1027273]
[1739478751651,0.155672,96356.0,96355.0,0.00022365]
[1739478754298,0.155672,96356.0,96355.0,0.00122365]
[1739478763749,0.305672,96356.0,96355.0,0.00122365]
[1739478770050,0.305672,96356.0,96355.0,0.00959602]
[1739478771389,0.155672,96356.0,96355.0,0.00959602]
[1739478773332,0.155672,96356.0,96355.0,0.00122365]
[1739478776015,0.155172,96356.0,96355.0,0.00122365]
[1739478777733,0.16828546,96358.0,96355.0,0.00122365]
[1739478777929,0.155672,96356.0,96355.0,0.00122365]
[1739478778478,0.155672,96356.0,96355.0,0.00022365]
[1739478778879,0.155672,96356.0,96355.0,0.00122365]
[1739478780105,0.155672,96356.0,96355.0,0.00022365]
[1739478780467,0.155672,96356.0,96355.0,0.00122365]
[1739478782369,0.155672,96356.0,96355.0,0.08372365]
[1739478782570,0.155672,96356.0,96355.0,0.09209602]
[1739478784272,0.155672,96356.0,96355.0,0.00959602]
[1739478784480,0.155672,96356.0,96355.0,0.00122365]
[1739478785940,0.305672,96356.0,96355.0,0.00122365]
[1739478791897,0.305672,96356.0,96355.0,0.08432365]
[1739478792101,0.155672,96356.0,96355.0,0.08432365]
[1739478792311,0.14614677,96365.0,96356.0,0.0473]
[1739478792521,0.155667,96359.0,96358.0,0.0831]
[1739478792722,0.155672,96356.0,96355.0,0.00965602]
[1739478793064,0.155672,96356.0,96355.0,0.00122365]
[1739478793292,0.155672,96356.0,96355.0,0.00022365]
[1739478797594,0.155672,96356.0,96355.0,0.1027273]
[1739478810585,0.0001065,96358.0,96356.0,0.0773]
[1739478810842,0.0001065,96358.0,96357.0,0.33547465]